fUSD/lending_fUSD_20251024
["ID","MTS","AMOUNT","RATE_DAILY","PERIOD"]
[392247592,1761276692818,-747.36,0.00042464,30]
[392247593,1761276692828,-500.0,0.00042464,30]
[392247594,1761276692837,-931.74,0.00042464,30]
[392247595,1761276692847,-500.0,0.00042464,30]
[392247596,1761276692856,-568.4,0.00042464,30]
[392247597,1761276692866,-855.01,0.00042464,30]
[392247598,1761276692875,-500.0,0.00042464,30]
[392247599,1761276692885,-500.0,0.00042464,30]
[392247600,1761276692896,-500.0,0.00042464,30]
[392247601,1761276692906,-500.0,0.00042464,30]
[392247602,1761276692915,-500.0,0.00042464,30]
[392247603,1761276692925,-500.0,0.00042464,30]
[392247604,1761276692934,-531.3,0.00042464,30]
[392247605,1761276692944,-500.0,0.00042464,30]
[392247606,1761276692953,-546.17,0.00042464,30]
[392247607,1761276692963,-500.0,0.00042464,30]
[392247608,1761276692973,-500.0,0.00042464,30]
[392247609,1761276692982,-1079.09,0.00042464,30]
[392247610,1761276692992,-500.0,0.00042464,30]
[392247611,1761276693002,-500.0,0.00042464,30]
[392247612,1761276693012,-500.0,0.00042464,30]
[392247613,1761276693022,-500.0,0.00042464,30]
[392247614,1761276693032,-500.0,0.00042464,30]
[392247615,1761276693041,-500.0,0.00042464,30]
[392247616,1761276693051,-774.66,0.00042464,30]
[392247617,1761276693061,-648.38,0.00042464,30]
[392247618,1761276693071,-500.0,0.00042464,30]
[392247619,1761276693080,-500.5,0.00042464,30]
[392247620,1761276693090,-790.24,0.00042464,30]
[392247621,1761276693100,-500.0,0.00042464,30]
[392247622,1761276693110,-1293.66,0.00042464,30]
[392247623,1761276693124,-500.0,0.00042464,30]
[392247624,1761276693134,-500.0,0.00042464,30]
[392247625,1761276693144,-1216.42,0.00042464,30]
[392247626,1761276693153,-500.0,0.00042464,30]
[392247627,1761276693165,-500.0,0.00042464,30]
[392247628,1761276693174,-500.0,0.00042464,30]
[392247629,1761276693184,-766.29,0.00042464,30]
[392247630,1761276693195,-605.84,0.00042464,30]
[392247631,1761276693205,-500.0,0.00042464,30]
[392247632,1761276693214,-584.16,0.00042464,30]
[392247633,1761276693223,-754.49,0.00042464,30]
[392247634,1761276693233,-500.0,0.00042464,30]
[392247635,1761276693243,-835.0,0.00042464,30]
[392247636,1761276693252,-500.0,0.00042464,30]
[392247637,1761276693262,-500.0,0.00042464,30]
[392247638,1761276693271,-500.0,0.00042464,30]
[392247639,1761276693281,-500.0,0.00042464,30]
[392247640,1761276693291,-500.0,0.00042464,30]
[392247641,1761276693300,-968.87,0.00042464,30]
[392247642,1761276693310,-584.43,0.00042464,30]
[392247643,1761276693320,-608.43883354,0.00042464,30]
[392247644,1761276693329,-765.02,0.00042464,30]
[392247645,1761276693339,-446.30138626,0.00042464,30]
[392247646,1761276693349,-818.09,0.00042464,30]
[392247647,1761276693358,-500.0,0.00042464,30]
[392247648,1761276693368,-500.0,0.00042464,30]
[392247649,1761276693377,-700.27,0.00042464,30]
[392247650,1761276693386,-500.0,0.00042464,30]
[392247651,1761276693396,-567.3,0.00042464,30]
[392247652,1761276693405,-500.0,0.00042464,30]
[392247653,1761276693415,-500.0,0.00042464,30]
[392247654,1761276693424,-500.0,0.00042464,30]
[392247655,1761276693434,-549.34,0.00042464,30]
[392247656,1761276693444,-305.83427541,0.00042464,30]
[392247657,1761276693454,-500.0,0.00042464,30]
[392247658,1761276693464,-500.0,0.00042464,30]
[392247659,1761276693475,-708.53,0.00042464,30]
[392247660,1761276693486,-500.0,0.00042464,30]
[392247661,1761276693496,-500.0,0.00042464,30]
[392247662,1761276693507,-500.0,0.00042464,30]
[392247663,1761276693516,-868.81,0.00042464,30]
[392247664,1761276693527,-500.0,0.00042464,30]
[392247665,1761276693537,-500.0,0.00042464,30]
[392247666,1761276693547,-841.79,0.00042464,30]
[392247667,1761276693556,-500.0,0.00042464,30]
[392247668,1761276693565,-293.60776388,0.00042464,30]
[392247669,1761276693575,-685.09,0.00042464,30]
[392247670,1761276693584,-500.0,0.00042464,30]
[392247671,1761276693593,-500.0,0.00042464,30]
[392247672,1761276693603,-518.17,0.00042464,30]
[392247673,1761276693612,-582.97,0.00042464,30]
[392247674,1761276693621,-500.0,0.00042464,30]
[392247675,1761276693630,-500.0,0.00042464,30]
[392247676,1761276693639,-500.0,0.00042464,30]
[392247677,1761276693649,-500.0,0.00042464,30]
[392247678,1761276693658,-500.0,0.00042464,30]
[392247679,1761276693667,-500.0,0.00042464,30]
[392247680,1761276693676,-767.33,0.00042464,30]
[392247681,1761276693685,-500.0,0.00042464,30]
[392247682,1761276693695,-576.3,0.00042464,30]
[392247683,1761276693704,-500.0,0.00042464,30]
[392247684,1761276693714,-547.29,0.00042464,30]
[392247685,1761276693723,-500.0,0.00042464,30]
[392247686,1761276693733,-563.88,0.00042464,30]
[392247687,1761276693742,-500.0,0.00042464,30]
[392247688,1761276693752,-536.57,0.00042464,30]
[392247689,1761276693761,-500.0,0.00042464,30]
[392247690,1761276693771,-500.0,0.00042464,30]
[392247691,1761276693783,-500.0,0.00042464,30]
[392247692,1761276693794,-500.0,0.00042464,30]
[392247693,1761276693803,-500.0,0.00042464,30]
[392247694,1761276693815,-500.0,0.00042464,30]
[392247695,1761276693825,-500.0,0.00042464,30]
[392247696,1761276693835,-500.0,0.00042464,30]
[392247697,1761276693847,-500.0,0.00042464,30]
[392247698,1761276693858,-500.0,0.00042464,30]
[392247699,1761276693867,-500.0,0.00042464,30]
[392247700,1761276693877,-500.0,0.00042464,30]
[392247701,1761276693887,-500.0,0.00042464,30]
[392247702,1761276693898,-716.69,0.00042464,30]
[392247703,1761276693907,-500.0,0.00042464,30]
[392247704,1761276693916,-582.83,0.00042464,30]
[392247705,1761276693925,-500.0,0.00042464,30]
[392247706,1761276693936,-500.0,0.00042464,30]
[392247707,1761276693945,-720.59,0.00042464,30]
[392247708,1761276693956,-500.0,0.00042464,30]
[392247709,1761276693965,-384.32517351,0.00042464,30]
[392247710,1761276693976,-251.94205425,0.00042464,30]
[392247711,1761276693986,-500.0,0.00042464,30]
[392247712,1761276693996,-502.35,0.00042464,30]
[392247713,1761276694007,-500.0,0.00042464,30]
[392247714,1761276694017,-500.0,0.00042464,30]
[392247715,1761276694027,-500.0,0.00042464,30]
[392247716,1761276694036,-500.0,0.00042464,30]
[392247717,1761276694047,-500.0,0.00042464,30]
[392247718,1761276694057,-500.0,0.00042464,30]
[392247719,1761276694066,-500.0,0.00042464,30]
[392247720,1761276694076,-853.32,0.00042464,30]
[392247721,1761276694086,-500.25,0.00042464,30]
[392247722,1761276694095,-260.94698862,0.00042464,30]
[392247723,1761276694105,-500.0,0.00042464,30]
[392247724,1761276694116,-770.35,0.00042464,30]
[392247725,1761276694128,-759.31,0.00042464,30]
[392247726,1761276694139,-864.42,0.00042464,2]
[392247727,1761276694148,-692.51,0.00042464,30]
[392247728,1761276694159,-925.13,0.00042464,30]
[392247729,1761276694169,-569.1,0.00042464,30]
[392247730,1761276694179,-500.0,0.00042464,2]
[392247731,1761276694188,-328.87498624,0.00042464,30]
[392247732,1761276694199,-760.48,0.00042464,30]
[392247733,1761276694209,-500.0,0.00042464,30]
[392247734,1761276694218,-500.0,0.00042464,30]
[392247735,1761276694228,-691.31,0.00042464,30]
[392247736,1761276694238,-500.0,0.00042464,2]
[392247737,1761276694248,-500.0,0.00042464,30]
[392247738,1761276694258,-555.6063786,0.00042464,30]
[392247739,1761276694268,-983.51,0.00042464,30]
[392247740,1761276694277,-500.0,0.00042464,30]
[392247741,1761276694287,-500.0,0.00042464,30]
[392247742,1761276694296,-590.79,0.00042464,30]
[392247743,1761276694307,-980.07,0.00042464,30]
[392247744,1761276694591,-500.0,0.00042464,30]
[392247745,1761276694614,-500.0,0.00042464,30]
[392247746,1761276694625,-421.88558715,0.00042464,30]
[392247747,1761276694636,-500.0,0.00042464,30]
[392247748,1761276694647,-500.0,0.00042464,30]
[392247749,1761276694657,-304.69245076,0.00042464,30]
[392247750,1761276694668,-817.32,0.00042464,30]
[392247751,1761276694679,-500.0,0.00042464,30]
[392247752,1761276694690,-500.0,0.00042464,10]
[392247753,1761276694700,-500.0,0.00042464,30]
[392247754,1761276694710,-368.78069271,0.00042464,30]
[392247755,1761276694720,-802.82,0.00042464,30]
[392247756,1761276694730,-500.0,0.00042464,30]
[392247757,1761276694740,-500.0,0.00042464,30]
[392247758,1761276694750,-644.8,0.00042464,30]
[392247759,1761276694759,-500.0,0.00042464,30]
[392247760,1761276694770,-500.0,0.00042464,30]
[392247761,1761276694781,-500.0,0.00042464,30]
[392247762,1761276694791,-896.35,0.00042464,30]
[392247763,1761276694802,-500.0,0.00042464,30]
[392247764,1761276694813,-743.01,0.00042464,30]
[392247765,1761276694823,-500.0,0.00042464,30]
[392247766,1761276694833,-500.0,0.00042464,30]
[392247767,1761276694843,-540.45,0.00042464,30]
[392247768,1761276694854,-500.0,0.00042464,30]
[392247769,1761276694864,-500.0,0.00042464,30]
[392247770,1761276694874,-956.91,0.00042464,30]
[392247771,1761276694884,-500.0,0.00042464,30]
[392247772,1761276694895,-500.0,0.00042464,30]
[392247773,1761276694905,-500.0,0.00042464,30]
[392247774,1761276694915,-500.0,0.00042464,30]
[392247775,1761276694926,-523.02,0.00042464,30]
[392247776,1761276694936,-625.96,0.00042464,30]
[392247777,1761276694947,-652.85,0.00042464,30]
[392247778,1761276694958,-571.6,0.00042464,30]
[392247779,1761276694968,-934.98,0.00042464,30]
[392247780,1761276694977,-500.0,0.00042464,30]
[392247781,1761276694988,-500.0,0.00042464,30]
[392247782,1761276694998,-506.71,0.00042464,30]
[392247783,1761276695009,-534.75521108,0.00042464,30]
[392247784,1761276695020,-500.0,0.00042464,30]
[392247785,1761276695030,-706.23,0.00042464,30]
[392247786,1761276695040,-500.0,0.00042464,30]
[392247787,1761276695051,-151.94482967,0.00042464,30]
[392247788,1761276695062,-500.0,0.00042464,30]
[392247789,1761276695072,-712.5,0.00042464,30]
[392247790,1761276695081,-500.0,0.00042464,30]
[392247791,1761276695091,-500.0,0.00042464,30]
[392247792,1761276695102,-500.0,0.00042464,30]
[392247793,1761276695112,-500.0,0.00042464,30]
[392247794,1761276695126,-698.44,0.00042464,30]
[392247795,1761276695135,-500.0,0.00042464,30]
[392247796,1761276695145,-500.0,0.00042465,30]
[392247797,1761276695155,-500.0,0.00042465,30]
[392247798,1761276695166,-500.0,0.00042465,30]
[392247799,1761276695175,-367.846634,0.00042465,30]
[392247800,1761276695184,-246.02031621,0.00042465,30]
[392247801,1761276695195,-500.0,0.00042465,30]
[392247802,1761276695204,-600.0,0.00042465,30]
[392247803,1761276695214,-500.0,0.00042465,30]
[392247804,1761276695223,-500.0,0.00042465,30]
[392247805,1761276695232,-500.0,0.00042465,30]
[392247806,1761276695242,-500.0,0.00042465,30]
[392247807,1761276695252,-500.0,0.00042465,2]
[392247808,1761276695262,-500.0,0.00042465,30]
[392247809,1761276695272,-500.0,0.00042465,30]
[392247810,1761276695281,-500.0,0.00042465,30]
[392247811,1761276695291,-631.88,0.00042465,30]
[392247812,1761276695300,-500.0,0.00042465,30]
[392247813,1761276695310,-500.0,0.00042465,30]
[392247814,1761276695320,-500.0,0.00042465,30]
[392247815,1761276695329,-500.0,0.00042465,30]
[392247816,1761276695339,-500.0,0.00042465,30]
[392247817,1761276695348,-500.0,0.00042465,30]
[392247818,1761276695357,-500.0,0.00042465,30]
[392247819,1761276695367,-500.0,0.00042465,30]
[392247820,1761276695376,-500.0,0.00042465,30]
[392247821,1761276695385,-500.0,0.00042465,30]
[392247822,1761276695395,-593.50987752,0.00042465,30]
[392247823,1761276695404,-500.0,0.00042465,30]
[392247824,1761276695414,-500.0,0.00042465,30]
[392247825,1761276695425,-500.0,0.00042465,30]
[392247826,1761276695435,-500.0,0.00042465,30]
[392247827,1761276695445,-500.0,0.00042465,30]
[392247828,1761276695454,-500.0,0.00042465,2]
[392247829,1761276695463,-500.0,0.00042465,30]
[392247830,1761276695473,-500.0,0.00042465,30]
[392247831,1761276695483,-662.02,0.00042465,30]
[392247832,1761276695492,-550.71,0.00042465,30]
[392247833,1761276695502,-500.0,0.00042465,30]
[392247834,1761276695511,-500.0,0.00042465,30]
[392247835,1761276695520,-500.0,0.00042465,30]
[392247836,1761276695530,-500.0,0.00042465,30]
[392247837,1761276695539,-500.0,0.00042465,30]
[392247838,1761276695548,-500.0,0.00042465,30]
[392247839,1761276695558,-752.97,0.00042465,30]
[392247840,1761276695567,-562.37,0.00042465,30]
[392247841,1761276695576,-500.0,0.00042465,30]
[392247842,1761276695586,-692.99,0.00042465,30]
[392247843,1761276695595,-500.0,0.00042465,30]
[392247844,1761276695605,-500.0,0.00042465,30]
[392247845,1761276695615,-500.0,0.00042465,30]
[392247846,1761276695624,-500.0,0.00042465,30]
[392247847,1761276695634,-614.45,0.00042465,30]
[392247848,1761276695643,-500.0,0.00042465,30]
[392247849,1761276695653,-500.0,0.00042465,30]
[392247850,1761276695664,-223.14387232,0.00042465,30]
[392247851,1761276695674,-500.0,0.00042465,30]
[392247852,1761276695683,-653.26,0.00042465,30]
[392247853,1761276695693,-971.61,0.00042465,30]
[392247854,1761276695706,-657.54,0.00042465,30]
[392247855,1761276695716,-741.84,0.00042465,30]
[392247856,1761276695725,-649.04,0.00042465,30]
[392247857,1761276695736,-216.71386427,0.00042465,30]
[392247858,1761276695746,-504.58783472,0.00042465,30]
[392247859,1761276695756,-601.63,0.00042465,30]
[392247860,1761276695766,-500.0,0.00042465,30]
[392247861,1761276695775,-525.56,0.00042465,30]
[392247862,1761276695785,-500.0,0.00042465,30]
[392247863,1761276695794,-500.0,0.00042465,30]
[392247864,1761276695804,-500.0,0.00042465,30]
[392247865,1761276695815,-944.3,0.00042465,30]
[392247866,1761276695824,-500.0,0.00042465,30]
[392247867,1761276695834,-643.81224082,0.00042465,30]
[392247868,1761276695846,-176.26741853,0.00042465,30]
[392247869,1761276695855,-500.0,0.00042465,30]
[392247870,1761276695865,-692.19,0.00042465,30]
[392247871,1761276695874,-500.0,0.00042465,30]
[392247872,1761276695883,-500.0,0.00042465,30]
[392247873,1761276695892,-831.51,0.00042465,30]
[392247874,1761276695902,-500.0,0.00042465,30]
[392247875,1761276695911,-934.85,0.00042465,30]
[392247876,1761276695921,-500.0,0.00042465,30]
[392247877,1761276695930,-500.0,0.00042465,30]
[392247878,1761276695940,-369.46632588,0.00042465,30]
[392247879,1761276695949,-500.0,0.00042465,30]
[392247880,1761276695959,-500.0,0.00042465,30]
[392247881,1761276695968,-500.0,0.00042465,30]
[392247882,1761276695978,-611.59,0.00042465,30]
[392247883,1761276695988,-500.0,0.00042465,30]
[392247884,1761276695997,-500.0,0.00042465,30]
[392247885,1761276696008,-500.0,0.00042465,30]
[392247886,1761276696018,-500.0,0.00042465,30]
[392247887,1761276696027,-828.75,0.00042465,30]
[392247888,1761276696037,-550.14,0.00042465,30]
[392247889,1761276696046,-509.48,0.00042465,30]
[392247890,1761276696055,-500.0,0.00042465,30]
[392247891,1761276696065,-500.0,0.00042465,30]
[392247892,1761276696074,-500.0,0.00042465,30]
[392247893,1761276696085,-500.0,0.00042465,30]
[392247894,1761276696095,-887.85,0.00042465,30]
[392247895,1761276696104,-500.0,0.00042465,30]
[392247896,1761276696115,-722.47,0.00042465,30]
[392247897,1761276696130,-653.44,0.00042465,30]
[392247898,1761276696141,-500.0,0.00042465,30]
[392247899,1761276696152,-500.0,0.00042465,30]
[392247900,1761276696163,-500.0,0.00042465,30]
[392247901,1761276696173,-500.0,0.00042465,30]
[392247902,1761276696183,-500.0,0.00042465,30]
[392247903,1761276696192,-629.72,0.00042465,30]
[392247904,1761276696202,-500.0,0.00042465,30]
[392247905,1761276696211,-500.0,0.00042465,30]
[392247906,1761276696221,-500.0,0.00042465,30]
[392247907,1761276696231,-500.0,0.00042465,30]
[392247908,1761276696240,-500.0,0.00042465,30]
[392247909,1761276696249,-500.0,0.00042465,30]
[392247910,1761276696259,-768.04,0.00042465,30]
[392247911,1761276696268,-500.0,0.00042465,30]
[392247912,1761276696278,-500.0,0.00042465,30]
[392247913,1761276696288,-604.08,0.00042465,30]
[392247914,1761276696298,-617.03,0.00042465,30]
[392247915,1761276696307,-289.59404093,0.00042465,30]
[392247916,1761276696316,-500.0,0.00042465,30]
[392247917,1761276696326,-698.83,0.00042465,30]
[392247918,1761276696335,-500.0,0.00042465,30]
[392247919,1761276696344,-680.26,0.00042465,30]
[392247920,1761276696354,-500.0,0.00042465,30]
[392247921,1761276696363,-500.0,0.00042465,30]
[392247922,1761276696372,-500.0,0.00042465,30]
[392247923,1761276696381,-500.0,0.00042465,30]
[392247924,1761276696391,-337.51567107,0.00042465,30]
[392247925,1761276696402,-560.72,0.00042465,30]
[392247926,1761276696412,-210.81914862,0.00042465,30]
[392247927,1761276696421,-500.0,0.00042465,30]
[392247928,1761276696432,-500.0,0.00042465,30]
[392247929,1761276696441,-500.0,0.00042465,30]
[392247930,1761276696452,-500.0,0.00042465,30]
[392247931,1761276696463,-500.0,0.00042465,30]
[392247932,1761276696473,-574.00736624,0.00042465,30]
[392247933,1761276696482,-500.0,0.00042465,30]
[392247934,1761276696492,-500.0,0.00042465,30]
[392247935,1761276696501,-500.0,0.00042465,30]
[392247936,1761276696510,-738.78,0.00042465,30]
[392247937,1761276696520,-500.0,0.00042465,30]
[392247938,1761276696529,-525.1,0.00042465,30]
[392247939,1761276696538,-608.95,0.00042465,30]
[392247940,1761276696548,-586.7871864,0.00042465,30]
[392247941,1761276696558,-649.91810336,0.00042465,30]
[392247942,1761276696568,-240.54791231,0.00042465,30]
[392247943,1761276696577,-500.0,0.00042465,30]
[392247944,1761276696588,-500.0,0.00042465,30]
[392247945,1761276696597,-500.0,0.00042465,30]
[392247946,1761276696606,-500.0,0.00042465,30]
[392247947,1761276696615,-575.75,0.00042465,30]
[392247948,1761276696624,-1053.78,0.00042465,30]
[392247949,1761276696634,-513.84,0.00042465,30]
[392247950,1761276696644,-500.0,0.00042465,30]
[392247951,1761276696654,-500.0,0.00042465,30]
[392247952,1761276696664,-500.0,0.00042465,30]
[392247953,1761276696674,-500.0,0.00042465,30]
[392247954,1761276696684,-500.0,0.00042465,30]
[392247955,1761276696694,-500.0,0.00042465,30]
[392247956,1761276696703,-500.0,0.00042465,30]
[392247957,1761276696712,-847.38,0.00042465,30]
[392247958,1761276696722,-808.39,0.00042465,30]
[392247959,1761276696731,-549.37,0.00042465,30]
[392247960,1761276696741,-578.8,0.00042465,30]
[392247961,1761276696751,-500.0,0.00042465,30]
[392247962,1761276696761,-156.40798,0.00042465,30]
[392247963,1761276696771,-188.8940516,0.00042465,30]
[392247964,1761276696780,-340.460656,0.00042465,30]
[392247965,1761276696789,-865.1,0.00042465,30]
[392247966,1761276696799,-617.67,0.00042465,30]
[392247967,1761276696808,-500.0,0.00042465,30]
[392247968,1761276696817,-500.0,0.00042465,30]
[392247969,1761276696826,-500.0,0.00042465,30]
[392247970,1761276696836,-658.11,0.00042465,30]
[392247971,1761276696845,-500.0,0.00042465,30]
[392247972,1761276696855,-735.14,0.00042465,30]
[392247973,1761276696864,-500.0,0.00042465,30]
[392247974,1761276696874,-500.0,0.00042465,30]
[392247975,1761276696884,-781.22,0.00042465,30]
[392247976,1761276696894,-500.0,0.00042465,30]
[392247977,1761276696903,-539.59,0.00042465,30]
[392247978,1761276696912,-733.91,0.00042465,30]
[392247979,1761276696922,-500.0,0.00042465,30]
[392247980,1761276696932,-500.0,0.00042465,30]
[392247981,1761276696942,-808.43,0.00042465,30]
[392247982,1761276696952,-500.0,0.00042465,30]
[392247983,1761276696962,-704.43,0.00042465,30]
[392247984,1761276696972,-613.465369,0.00042465,30]
[392247985,1761276696982,-533.23,0.00042465,30]
[392247986,1761276696991,-840.45,0.00042465,30]
[392247987,1761276697059,-500.0,0.00042465,30]
[392247988,1761276697069,-597.88,0.00042465,30]
[392247989,1761276697079,-500.0,0.00042465,30]
[392247990,1761276697088,-500.0,0.00042465,30]
[392247991,1761276697097,-566.49,0.00042465,30]
[392247992,1761276697107,-500.0,0.00042465,30]
[392247993,1761276697121,-500.0,0.00042465,30]
[392247994,1761276697131,-500.0,0.00042465,30]
[392247995,1761276697141,-500.0,0.00042465,30]
[392247996,1761276697150,-500.0,0.00042465,30]
[392247997,1761276697161,-830.72,0.00042465,30]
[392247998,1761276697170,-500.0,0.00042465,30]
[392247999,1761276697179,-500.0,0.00042465,30]
[392248000,1761276697191,-365.29930501,0.00042465,30]
[392248001,1761276697201,-500.0,0.00042465,30]
[392248002,1761276697212,-500.0,0.00042465,30]
[392248003,1761276697222,-749.93,0.00042465,30]
[392248004,1761276697233,-666.64,0.00042465,30]
[392248005,1761276697243,-500.0,0.00042465,30]
[392248006,1761276697253,-500.0,0.00042465,30]
[392248007,1761276697262,-500.0,0.00042465,30]
[392248008,1761276697272,-500.0,0.00042465,30]
[392248009,1761276697283,-500.0,0.00042465,30]
[392248010,1761276697293,-500.0,0.00042465,120]
[392248011,1761276697302,-500.0,0.00042465,30]
[392248012,1761276697313,-209.76755784,0.00042465,30]
[392248013,1761276697324,-500.0,0.00042465,30]
[392248014,1761276697333,-500.0,0.00042465,30]
[392248015,1761276697343,-442.95550924,0.00042465,30]
[392248016,1761276697353,-788.87,0.00042465,30]
[392248017,1761276697362,-500.0,0.00042465,30]
[392248018,1761276697371,-686.26,0.00042465,30]
[392248019,1761276697381,-693.47,0.00042465,30]
[392248020,1761276697390,-500.0,0.00042465,30]
[392248021,1761276697399,-513.66,0.00042465,30]
[392248022,1761276697408,-500.0,0.00042465,30]
[392248023,1761276697417,-500.0,0.00042465,30]
[392248024,1761276697426,-560.3,0.00042465,30]
[392248025,1761276697436,-608.92,0.00042465,30]
[392248026,1761276697445,-795.51,0.00042465,30]
[392248027,1761276697455,-500.0,0.00042465,30]
[392248028,1761276697464,-500.0,0.00042465,30]
[392248029,1761276697474,-1206.81,0.00042465,30]
[392248030,1761276697484,-500.0,0.00042465,30]
[392248031,1761276697493,-500.0,0.00042465,30]
[392248032,1761276697503,-1125.76,0.00042465,30]
[392248033,1761276697512,-738.1,0.00042465,30]
[392248034,1761276697521,-500.0,0.00042465,30]
[392248035,1761276697531,-500.0,0.00042465,30]
[392248036,1761276697541,-500.0,0.00042465,30]
[392248037,1761276697550,-967.88,0.00042465,30]
[392248038,1761276697559,-500.0,0.00042465,30]
[392248039,1761276697568,-516.62421934,0.00042465,30]
[392248040,1761276697578,-500.0,0.00042465,30]
[392248041,1761276697586,-885.41,0.00042465,30]
[392248042,1761276697595,-500.0,0.00042465,30]
[392248043,1761276697604,-634.75,0.00042465,30]
[392248044,1761276697615,-500.0,0.00042465,30]
[392248045,1761276697625,-500.0,0.00042465,30]
[392248046,1761276697635,-529.46,0.00042465,30]
[392248047,1761276697646,-796.37,0.00042465,30]
[392248048,1761276697656,-621.28,0.00042465,30]
[392248049,1761276697667,-500.0,0.00042465,30]
[392248050,1761276697677,-880.49,0.00042465,30]
[392248051,1761276697687,-600.0,0.00042465,30]
[392248052,1761276697697,-926.44,0.00042465,30]
[392248053,1761276697706,-500.0,0.00042465,30]
[392248054,1761276697716,-500.0,0.00042465,30]
[392248055,1761276697726,-580.82,0.00042465,30]
[392248056,1761276697736,-513.39,0.00042465,30]
[392248057,1761276697746,-736.93,0.00042465,30]
[392248058,1761276697755,-565.79,0.00042465,30]
[392248059,1761276697764,-591.81,0.00042465,30]
[392248060,1761276697773,-500.0,0.00042465,30]
[392248061,1761276697784,-500.0,0.00042465,30]
[392248062,1761276697794,-500.0,0.00042465,30]
[392248063,1761276697805,-767.1,0.00042465,30]
[392248064,1761276697815,-856.96,0.00042465,30]
[392248065,1761276697826,-870.03,0.00042465,30]
[392248066,1761276697835,-809.41,0.00042465,30]
[392248067,1761276697847,-500.0,0.00042465,30]
[392248068,1761276697858,-500.0,0.00042465,30]
[392248069,1761276697868,-500.0,0.00042465,30]
[392248070,1761276697879,-500.0,0.00042465,30]
[392248071,1761276697889,-500.0,0.00042465,30]
[392248072,1761276697899,-500.0,0.00042465,30]
[392248073,1761276697908,-600.0,0.00042465,30]
[392248074,1761276697917,-500.0,0.00042465,30]
[392248075,1761276697927,-722.58,0.00042465,30]
[392248076,1761276697936,-500.0,0.00042465,30]
[392248077,1761276697946,-500.0,0.00042465,30]
[392248078,1761276697956,-581.66,0.00042465,30]
[392248079,1761276697965,-500.0,0.00042465,30]
[392248080,1761276697975,-999.11,0.00042465,30]
[392248081,1761276697984,-500.0,0.00042465,30]
[392248082,1761276697994,-500.0,0.00042465,30]
[392248083,1761276698003,-500.0,0.00042465,30]
[392248084,1761276698013,-500.0,0.00042465,30]
[392248085,1761276698022,-500.0,0.00042465,30]
[392248086,1761276698032,-500.0,0.00042465,30]
[392248087,1761276698043,-535.52,0.00042465,30]
[392248088,1761276698052,-557.78,0.00042465,30]
[392248089,1761276698061,-2927.58,0.00042465,30]
[392248090,1761276698071,-500.0,0.00042465,30]
[392248091,1761276698080,-500.0,0.00042465,30]